[Event "Titled Tuesday Blitz June 27 Late 2023"]
[White "Harshavardhan G B"]
[Black "Ganiev, Roman"]
[WhiteFideId "25059009"]
[BlackFideId "4131452"]
[WhiteElo "2811"]
[BlackElo "2581"]
[Result "1-0"]
[Round "5"]
[TimeControl "180+2"]
[Date "2023.06.27"]
[WhiteClock "0:01:14"]
[BlackClock "0:00:13"]
[Board "37"]

1. d4 {[%clk 0:03:00]}  Nf6 {[%clk 0:02:57]} 2. c4 {[%clk 0:03:00]}  e6 {[%clk 0:02:58]} 3. Nc3 {[%clk 0:03:00]}  Bb4 {[%clk 0:02:57]} 4. f3 {[%clk 0:02:59]}  c5 {[%clk 0:02:57]} 5. a3 {[%clk 0:02:56]}  Ba5 {[%clk 0:02:49]} 6. d5 {[%clk 0:02:54]}  b5 {[%clk 0:02:47]} 7. e4 {[%clk 0:02:50]}  d6 {[%clk 0:02:46]} 8. Ne2 {[%clk 0:02:46]}  bxc4 {[%clk 0:02:46]} 9. Nf4 {[%clk 0:02:45]}  e5 {[%clk 0:02:41]} 10. Ne2 {[%clk 0:02:44]}  Nbd7 {[%clk 0:02:40]} 11. Ng3 {[%clk 0:02:44]}  Nb6 {[%clk 0:02:39]} 12. Be2 {[%clk 0:02:43]}  Ng8 {[%clk 0:02:35]} 13. O-O {[%clk 0:02:43]}  Ne7 {[%clk 0:02:36]} 14. f4 {[%clk 0:02:43]}  exf4 {[%clk 0:02:36]} 15. Bxf4 {[%clk 0:02:43]}  Ng6 {[%clk 0:02:36]} 16. Nh5 {[%clk 0:02:43]}  O-O {[%clk 0:02:34]} 17. Qc1 {[%clk 0:02:43]}  f6 {[%clk 0:02:23]} 18. Nb5 {[%clk 0:02:33]}  Ne5 {[%clk 0:01:59]} 19. Bg3 {[%clk 0:02:22]}  Ba6 {[%clk 0:01:39]} 20. Nc3 {[%clk 0:02:20]}  Nd3 {[%clk 0:01:39]} 21. Qc2 {[%clk 0:02:17]}  Rb8 {[%clk 0:01:32]} 22. Bg4 {[%clk 0:02:14]}  Nxb2 {[%clk 0:01:15]} 23. Qxb2 {[%clk 0:01:28]}  Na4 {[%clk 0:01:15]} 24. Qxb8 {[%clk 0:01:27]}  Qxb8 {[%clk 0:01:13]} 25. Nxa4 {[%clk 0:01:27]}  Qb3 {[%clk 0:01:06]} 26. Bxd6 {[%clk 0:01:25]}  Qxa4 {[%clk 0:01:04]} 27. Be6+ {[%clk 0:01:25]}  Rf7 {[%clk 0:00:59]} 28. Nxf6+ {[%clk 0:01:25]}  gxf6 {[%clk 0:00:49]} 29. Rxf6 {[%clk 0:01:26]}  Bc8 {[%clk 0:00:19]} 30. Bxf7+ {[%clk 0:01:20]}  Kg7 {[%clk 0:00:19]} 31. Be5 {[%clk 0:01:20]}  c3 {[%clk 0:00:16]} 32. Raf1 {[%clk 0:01:14]}  c2 {[%clk 0:00:14]} 33. Rg6+ {[%clk 0:01:14]}  Kf8 {[%clk 0:00:13]} 34. Bd6# {[%clk 0:01:14]} 1-0


[Site "https://www.chess.com"]

[Event "Titled Tuesday Blitz June 27 Late 2023"]
[White "Haydon, David L"]
[Black "Manukyan, Artyom"]
[WhiteFideId "415405"]
[BlackFideId "13305786"]
[WhiteElo "2804"]
[BlackElo "2567"]
[Result "1-0"]
[Round "5"]
[TimeControl "180+2"]
[Date "2023.06.27"]
[WhiteClock "0:00:28"]
[BlackClock "0:00:03"]
[Board "39"]

1. d4 {[%clk 0:02:59]}  d5 {[%clk 0:02:59]} 2. Nc3 {[%clk 0:02:59]}  Nf6 {[%clk 0:02:59]} 3. Bf4 {[%clk 0:02:59]}  c5 {[%clk 0:02:59]} 4. e3 {[%clk 0:02:59]}  cxd4 {[%clk 0:02:59]} 5. exd4 {[%clk 0:02:59]}  a6 {[%clk 0:02:59]} 6. Nf3 {[%clk 0:02:59]}  Nc6 {[%clk 0:03:00]} 7. Be2 {[%clk 0:02:59]}  Bf5 {[%clk 0:03:00]} 8. O-O {[%clk 0:02:57]}  e6 {[%clk 0:03:00]} 9. Ne5 {[%clk 0:02:57]}  Bd6 {[%clk 0:03:00]} 10. Nxc6 {[%clk 0:02:57]}  bxc6 {[%clk 0:03:01]} 11. Bxd6 {[%clk 0:02:57]}  Qxd6 {[%clk 0:03:02]} 12. Na4 {[%clk 0:02:57]}  O-O {[%clk 0:03:02]} 13. c3 {[%clk 0:02:57]}  Rab8 {[%clk 0:02:55]} 14. Bxa6 {[%clk 0:02:53]}  Ne4 {[%clk 0:02:41]} 15. b4 {[%clk 0:02:47]}  Ra8 {[%clk 0:02:18]} 16. Bd3 {[%clk 0:02:40]}  Nxf2 {[%clk 0:02:18]} 17. Rxf2 {[%clk 0:02:38]}  Bxd3 {[%clk 0:02:18]} 18. Nc5 {[%clk 0:02:38]}  Bc4 {[%clk 0:02:07]} 19. a4 {[%clk 0:02:36]}  Ra7 {[%clk 0:02:02]} 20. Qg4 {[%clk 0:02:32]}  e5 {[%clk 0:01:57]} 21. Qg3 {[%clk 0:02:31]}  Re7 {[%clk 0:01:42]} 22. dxe5 {[%clk 0:02:30]}  Qh6 {[%clk 0:01:26]} 23. Re1 {[%clk 0:02:28]}  Rfe8 {[%clk 0:01:26]} 24. a5 {[%clk 0:02:14]}  Qh5 {[%clk 0:01:24]} 25. e6 {[%clk 0:02:05]}  fxe6 {[%clk 0:01:24]} 26. h4 {[%clk 0:01:54]}  e5 {[%clk 0:01:23]} 27. Re3 {[%clk 0:01:46]}  e4 {[%clk 0:01:23]} 28. Kh2 {[%clk 0:01:24]}  Re5 {[%clk 0:01:17]} 29. Nd7 {[%clk 0:01:21]}  Rf5 {[%clk 0:00:55]} 30. Nf6+ {[%clk 0:01:17]}  Rxf6 {[%clk 0:00:55]} 31. Rxf6 {[%clk 0:01:17]}  Bb5 {[%clk 0:00:52]} 32. Rf2 {[%clk 0:01:10]}  h6 {[%clk 0:00:51]} 33. Kh3 {[%clk 0:00:56]}  Kh8 {[%clk 0:00:44]} 34. Qg4 {[%clk 0:00:55]}  Qe5 {[%clk 0:00:43]} 35. Qf5 {[%clk 0:00:52]}  Qe7 {[%clk 0:00:41]} 36. Qf7 {[%clk 0:00:44]}  Qd8 {[%clk 0:00:35]} 37. Rg3 {[%clk 0:00:42]}  Rg8 {[%clk 0:00:33]} 38. Qe6 {[%clk 0:00:38]}  c5 {[%clk 0:00:31]} 39. Rf7 {[%clk 0:00:32]}  cxb4 {[%clk 0:00:03]} 40. Rgxg7 {[%clk 0:00:28]} 1-0


[Site "https://www.chess.com"]

[Event "Titled Tuesday Blitz June 27 Late 2023"]
[White "Domingo Nunez, Ruben"]
[Black "Leitao, Rafael"]
[WhiteFideId "22245570"]
[BlackFideId "2101246"]
[WhiteElo "2566"]
[BlackElo "2792"]
[Result "1/2-1/2"]
[Round "5"]
[TimeControl "180+2"]
[Date "2023.06.27"]
[WhiteClock "0:00:11"]
[BlackClock "0:00:06"]
[Board "40"]

1. a3 {[%clk 0:02:57]}  a6 {[%clk 0:02:56]} 2. h3 {[%clk 0:02:57]}  h6 {[%clk 0:02:56]} 3. g3 {[%clk 0:02:58]}  g6 {[%clk 0:02:56]} 4. Bg2 {[%clk 0:02:58]}  Bg7 {[%clk 0:02:56]} 5. d3 {[%clk 0:02:58]}  Nf6 {[%clk 0:02:55]} 6. Nf3 {[%clk 0:02:59]}  d5 {[%clk 0:02:54]} 7. O-O {[%clk 0:02:59]}  c5 {[%clk 0:02:54]} 8. c4 {[%clk 0:02:59]}  Nc6 {[%clk 0:02:53]} 9. Nbd2 {[%clk 0:02:58]}  O-O {[%clk 0:02:34]} 10. Rb1 {[%clk 0:02:57]}  a5 {[%clk 0:02:27]} 11. b3 {[%clk 0:02:57]}  b6 {[%clk 0:02:24]} 12. Ne1 {[%clk 0:02:57]}  Bb7 {[%clk 0:02:22]} 13. Nc2 {[%clk 0:02:57]}  Rc8 {[%clk 0:02:09]} 14. b4 {[%clk 0:02:57]}  axb4 {[%clk 0:02:05]} 15. axb4 {[%clk 0:02:58]}  cxb4 {[%clk 0:01:57]} 16. Nxb4 {[%clk 0:02:56]}  Nxb4 {[%clk 0:01:54]} 17. Rxb4 {[%clk 0:02:56]}  Bc6 {[%clk 0:01:52]} 18. Bb2 {[%clk 0:02:43]}  dxc4 {[%clk 0:01:49]} 19. Rxc4 {[%clk 0:02:42]}  Bxg2 {[%clk 0:01:47]} 20. Kxg2 {[%clk 0:02:42]}  Qd5+ {[%clk 0:01:43]} 21. Kh2 {[%clk 0:02:40]}  b5 {[%clk 0:01:42]} 22. Rb4 {[%clk 0:02:16]}  h5 {[%clk 0:01:35]} 23. Qb3 {[%clk 0:02:15]}  Qxb3 {[%clk 0:01:31]} 24. Rxb3 {[%clk 0:02:09]}  Rc2 {[%clk 0:01:24]} 25. Rd1 {[%clk 0:01:58]}  Rb8 {[%clk 0:01:10]} 26. Kg2 {[%clk 0:01:48]}  Nd5 {[%clk 0:01:07]} 27. Bxg7 {[%clk 0:01:34]}  Kxg7 {[%clk 0:01:08]} 28. Kf1 {[%clk 0:01:21]}  Nc3 {[%clk 0:00:48]} 29. Ra1 {[%clk 0:01:21]}  b4 {[%clk 0:00:46]} 30. Ke1 {[%clk 0:01:15]}  Rb6 {[%clk 0:00:45]} 31. e3 {[%clk 0:00:35]}  e5 {[%clk 0:00:44]} 32. Nc4 {[%clk 0:00:32]}  Rf6 {[%clk 0:00:44]} 33. Nd2 {[%clk 0:00:27]}  Rb6 {[%clk 0:00:23]} 34. Ne4 {[%clk 0:00:18]}  Nxe4 {[%clk 0:00:22]} 35. dxe4 {[%clk 0:00:18]}  Rd6 {[%clk 0:00:20]} 36. Rxb4 {[%clk 0:00:06]}  Rdd2 {[%clk 0:00:20]} 37. Rc1 {[%clk 0:00:05]}  Rxf2 {[%clk 0:00:19]} 38. Rxc2 {[%clk 0:00:05]}  Rxc2 {[%clk 0:00:18]} 39. Kf1 {[%clk 0:00:06]}  g5 {[%clk 0:00:16]} 40. Rb5 {[%clk 0:00:06]}  f6 {[%clk 0:00:13]} 41. Rb4 {[%clk 0:00:06]}  Kg6 {[%clk 0:00:13]} 42. Kg1 {[%clk 0:00:05]}  Re2 {[%clk 0:00:12]} 43. Rb3 {[%clk 0:00:05]}  Rd2 {[%clk 0:00:11]} 44. Ra3 {[%clk 0:00:05]}  Re2 {[%clk 0:00:10]} 45. Rb3 {[%clk 0:00:06]}  Kf7 {[%clk 0:00:11]} 46. Rb7+ {[%clk 0:00:05]}  Ke6 {[%clk 0:00:11]} 47. Rb6+ {[%clk 0:00:06]}  Ke7 {[%clk 0:00:12]} 48. Rb7+ {[%clk 0:00:06]}  Kd6 {[%clk 0:00:12]} 49. Rb6+ {[%clk 0:00:07]}  Kc5 {[%clk 0:00:12]} 50. Rxf6 {[%clk 0:00:07]}  Rxe3 {[%clk 0:00:13]} 51. Kf2 {[%clk 0:00:07]}  Rxe4 {[%clk 0:00:12]} 52. Rf5 {[%clk 0:00:07]}  h4 {[%clk 0:00:07]} 53. Rxg5 {[%clk 0:00:08]}  hxg3+ {[%clk 0:00:07]} 54. Rxg3 {[%clk 0:00:08]}  Kd4 {[%clk 0:00:07]} 55. Rg4 {[%clk 0:00:08]}  Rxg4 {[%clk 0:00:05]} 56. hxg4 {[%clk 0:00:09]}  e4 {[%clk 0:00:04]} 57. g5 {[%clk 0:00:09]}  Ke5 {[%clk 0:00:04]} 58. Ke3 {[%clk 0:00:09]}  Kf5 {[%clk 0:00:05]} 59. g6 {[%clk 0:00:10]}  Kxg6 {[%clk 0:00:06]} 60. Kxe4 {[%clk 0:00:11]} 1/2-1/2


[Site "https://www.chess.com"]

[Event "Titled Tuesday Blitz June 27 Late 2023"]
[White "Ohanyan, Emin"]
[Black "Bjelobrk, Igor"]
[WhiteFideId "13312022"]
[BlackFideId "4300726"]
[WhiteElo "2792"]
[BlackElo "2565"]
[Result "1-0"]
[Round "5"]
[TimeControl "180+2"]
[Date "2023.06.27"]
[WhiteClock "0:01:08"]
[BlackClock "0:00:56"]
[Board "41"]

1. e4 {[%clk 0:02:52]}  e6 {[%clk 0:02:59]} 2. d4 {[%clk 0:02:51]}  d5 {[%clk 0:02:59]} 3. Bd3 {[%clk 0:02:50]}  c5 {[%clk 0:02:58]} 4. Nf3 {[%clk 0:02:50]}  Nc6 {[%clk 0:02:56]} 5. dxc5 {[%clk 0:02:45]}  dxe4 {[%clk 0:02:54]} 6. Bxe4 {[%clk 0:02:45]}  Qxd1+ {[%clk 0:02:54]} 7. Kxd1 {[%clk 0:02:46]}  Bxc5 {[%clk 0:02:54]} 8. Ke2 {[%clk 0:02:44]}  Nf6 {[%clk 0:02:53]} 9. Bxc6+ {[%clk 0:02:38]}  bxc6 {[%clk 0:02:53]} 10. b3 {[%clk 0:02:36]}  O-O {[%clk 0:02:48]} 11. Ba3 {[%clk 0:02:34]}  Bxa3 {[%clk 0:02:37]} 12. Nxa3 {[%clk 0:02:35]}  a5 {[%clk 0:02:32]} 13. Ne5 {[%clk 0:02:27]}  Bb7 {[%clk 0:02:27]} 14. Nac4 {[%clk 0:02:25]}  c5 {[%clk 0:02:24]} 15. f3 {[%clk 0:02:13]}  Nd5 {[%clk 0:02:14]} 16. Kf2 {[%clk 0:02:05]}  a4 {[%clk 0:02:10]} 17. Nd7 {[%clk 0:01:56]}  Rfc8 {[%clk 0:02:00]} 18. Ndb6 {[%clk 0:01:52]}  Nxb6 {[%clk 0:01:57]} 19. Nxb6 {[%clk 0:01:53]}  axb3 {[%clk 0:01:51]} 20. cxb3 {[%clk 0:01:50]}  Bd5 {[%clk 0:01:38]} 21. Rhc1 {[%clk 0:01:47]}  h6 {[%clk 0:01:33]} 22. Rc3 {[%clk 0:01:25]}  Rcb8 {[%clk 0:01:27]} 23. Nxa8 {[%clk 0:01:24]}  Rxa8 {[%clk 0:01:28]} 24. a4 {[%clk 0:01:18]}  Ra5 {[%clk 0:01:25]} 25. Rac1 {[%clk 0:01:17]}  Ra7 {[%clk 0:01:23]} 26. Rxc5 {[%clk 0:01:14]}  Bxb3 {[%clk 0:01:22]} 27. a5 {[%clk 0:01:15]}  Bd5 {[%clk 0:01:22]} 28. Ra1 {[%clk 0:01:14]}  Ra6 {[%clk 0:01:21]} 29. Rb5 {[%clk 0:01:13]}  g5 {[%clk 0:01:18]} 30. Rb6 {[%clk 0:01:14]}  Ra7 {[%clk 0:01:19]} 31. a6 {[%clk 0:01:14]}  Kg7 {[%clk 0:01:19]} 32. Ke3 {[%clk 0:01:10]}  Kf6 {[%clk 0:01:15]} 33. Kd4 {[%clk 0:01:10]}  Ke7 {[%clk 0:01:12]} 34. Kc5 {[%clk 0:01:09]}  Rc7+ {[%clk 0:01:12]} 35. Kb5 {[%clk 0:01:09]}  Ra7 {[%clk 0:00:56]} 36. Rb8 {[%clk 0:01:08]} 1-0


[Site "https://www.chess.com"]

[Event "Titled Tuesday Blitz June 27 Late 2023"]
[White "Tristan, Leonardo"]
[Black "D`Arruda, Ricardo D."]
[WhiteFideId "113816"]
[BlackFideId "100692"]
[WhiteElo "2771"]
[BlackElo "2546"]
[Result "0-1"]
[Round "5"]
[TimeControl "180+2"]
[Date "2023.06.27"]
[WhiteClock "0:00:00"]
[BlackClock "0:00:25"]
[Board "44"]

1. d4 {[%clk 0:03:00]}  Nf6 {[%clk 0:02:46]} 2. Nf3 {[%clk 0:03:01]}  e6 {[%clk 0:02:46]} 3. Bf4 {[%clk 0:03:01]}  d5 {[%clk 0:02:46]} 4. e3 {[%clk 0:03:01]}  Bd6 {[%clk 0:02:46]} 5. Nbd2 {[%clk 0:03:01]}  Bxf4 {[%clk 0:02:45]} 6. exf4 {[%clk 0:03:02]}  O-O {[%clk 0:02:44]} 7. c3 {[%clk 0:03:02]}  Nbd7 {[%clk 0:02:43]} 8. Bd3 {[%clk 0:03:00]}  c5 {[%clk 0:02:42]} 9. O-O {[%clk 0:02:59]}  Qb6 {[%clk 0:02:41]} 10. Rb1 {[%clk 0:02:56]}  Nb8 {[%clk 0:02:25]} 11. Re1 {[%clk 0:02:41]}  Nc6 {[%clk 0:02:24]} 12. dxc5 {[%clk 0:02:42]}  Qxc5 {[%clk 0:02:24]} 13. Nb3 {[%clk 0:02:41]}  Qd6 {[%clk 0:02:22]} 14. g3 {[%clk 0:02:41]}  Bd7 {[%clk 0:02:16]} 15. Nbd4 {[%clk 0:02:41]}  a6 {[%clk 0:02:09]} 16. Bc2 {[%clk 0:02:40]}  Rfe8 {[%clk 0:02:08]} 17. Ne5 {[%clk 0:02:39]}  Rad8 {[%clk 0:02:06]} 18. Ndf3 {[%clk 0:02:27]}  Bc8 {[%clk 0:02:03]} 19. Ng5 {[%clk 0:02:25]}  Re7 {[%clk 0:02:02]} 20. Qd3 {[%clk 0:02:07]}  g6 {[%clk 0:01:54]} 21. h4 {[%clk 0:02:06]}  d4 {[%clk 0:01:49]} 22. Rbd1 {[%clk 0:02:04]}  Qc7 {[%clk 0:01:43]} 23. Nxc6 {[%clk 0:01:27]}  bxc6 {[%clk 0:01:41]} 24. Qc4 {[%clk 0:01:01]}  dxc3 {[%clk 0:01:29]} 25. Rxd8+ {[%clk 0:01:00]}  Qxd8 {[%clk 0:01:30]} 26. Qxc3 {[%clk 0:01:01]}  Rd7 {[%clk 0:01:23]} 27. Bb3 {[%clk 0:00:51]}  Rd3 {[%clk 0:01:19]} 28. Qxc6 {[%clk 0:00:48]}  Bd7 {[%clk 0:01:15]} 29. Qxa6 {[%clk 0:00:45]}  Rd2 {[%clk 0:01:08]} 30. Re2 {[%clk 0:00:31]}  Rxe2 {[%clk 0:01:07]} 31. Qxe2 {[%clk 0:00:31]}  Bc6 {[%clk 0:01:07]} 32. Nxf7 {[%clk 0:00:28]}  Kxf7 {[%clk 0:00:42]} 33. Qxe6+ {[%clk 0:00:27]}  Kg7 {[%clk 0:00:43]} 34. Qxc6 {[%clk 0:00:28]}  Ng4 {[%clk 0:00:41]} 35. Qc3+ {[%clk 0:00:22]}  Kh6 {[%clk 0:00:41]} 36. Qc1 {[%clk 0:00:22]}  Qb6 {[%clk 0:00:38]} 37. f5+ {[%clk 0:00:21]}  Kg7 {[%clk 0:00:39]} 38. Qf4 {[%clk 0:00:20]}  Nf6 {[%clk 0:00:34]} 39. fxg6 {[%clk 0:00:18]}  hxg6 {[%clk 0:00:35]} 40. Qc4 {[%clk 0:00:15]}  Qb7 {[%clk 0:00:31]} 41. Qe6 {[%clk 0:00:15]}  Qc7 {[%clk 0:00:31]} 42. Kg2 {[%clk 0:00:14]}  Qb7+ {[%clk 0:00:30]} 43. Kh2 {[%clk 0:00:14]}  Qa7 {[%clk 0:00:31]} 44. Qe3 {[%clk 0:00:13]}  Ng4+ {[%clk 0:00:27]} 45. Kg2 {[%clk 0:00:04]}  Nxe3+ {[%clk 0:00:28]} 46. fxe3 {[%clk 0:00:05]}  Qxe3 {[%clk 0:00:28]} 47. Kh3 {[%clk 0:00:04]}  Qd2 {[%clk 0:00:28]} 48. Kg4 {[%clk 0:00:04]}  Qxb2 {[%clk 0:00:29]} 49. Kf4 {[%clk 0:00:05]}  Kf6 {[%clk 0:00:28]} 50. Kf3 {[%clk 0:00:04]}  Qc3+ {[%clk 0:00:28]} 51. Kf4 {[%clk 0:00:04]}  Qd4+ {[%clk 0:00:28]} 52. Kf3 {[%clk 0:00:04]}  Ke5 {[%clk 0:00:28]} 53. Kg2 {[%clk 0:00:03]}  Ke4 {[%clk 0:00:27]} 54. Bc2+ {[%clk 0:00:03]}  Ke3 {[%clk 0:00:27]} 55. Bxg6 {[%clk 0:00:03]}  Qd2+ {[%clk 0:00:27]} 56. Kh3 {[%clk 0:00:04]}  Qxa2 {[%clk 0:00:27]} 57. Kg4 {[%clk 0:00:02]}  Qe6+ {[%clk 0:00:25]} 58. Bf5 {[%clk 0:00:00]}  Qg8+ {[%clk 0:00:25]} 0-1


[Site "https://www.chess.com"]

[Event "Titled Tuesday Blitz June 27 Late 2023"]
[White "Koutsin, Sergey"]
[Black "Cruz, Jonathan"]
[WhiteFideId "14101483"]
[BlackFideId "3802124"]
[WhiteElo "2519"]
[BlackElo "2769"]
[Result "0-1"]
[Round "5"]
[TimeControl "180+2"]
[Date "2023.06.27"]
[WhiteClock "0:00:04"]
[BlackClock "0:00:06"]
[Board "45"]

1. d4 {[%clk 0:03:00]}  Nf6 {[%clk 0:02:55]} 2. c4 {[%clk 0:03:01]}  g6 {[%clk 0:02:52]} 3. Nc3 {[%clk 0:03:00]}  d5 {[%clk 0:02:52]} 4. Nf3 {[%clk 0:03:00]}  Bg7 {[%clk 0:02:52]} 5. e3 {[%clk 0:03:01]}  O-O {[%clk 0:02:51]} 6. b4 {[%clk 0:03:01]}  c6 {[%clk 0:02:38]} 7. Bb2 {[%clk 0:03:00]}  Bg4 {[%clk 0:02:36]} 8. Be2 {[%clk 0:02:59]}  Nbd7 {[%clk 0:02:36]} 9. O-O {[%clk 0:02:57]}  dxc4 {[%clk 0:02:23]} 10. Bxc4 {[%clk 0:02:49]}  e5 {[%clk 0:02:20]} 11. Be2 {[%clk 0:02:04]}  Bxf3 {[%clk 0:01:46]} 12. Bxf3 {[%clk 0:02:02]}  exd4 {[%clk 0:01:47]} 13. Qxd4 {[%clk 0:01:35]}  Nd5 {[%clk 0:01:40]} 14. Qc4 {[%clk 0:01:35]}  Ne5 {[%clk 0:01:36]} 15. Qb3 {[%clk 0:01:29]}  Nxf3+ {[%clk 0:01:34]} 16. gxf3 {[%clk 0:01:29]}  Qg5+ {[%clk 0:01:31]} 17. Kh1 {[%clk 0:01:29]}  Qf6 {[%clk 0:01:21]} 18. f4 {[%clk 0:01:15]}  Nxc3 {[%clk 0:01:12]} 19. Rac1 {[%clk 0:01:14]}  Qf5 {[%clk 0:01:03]} 20. Bxc3 {[%clk 0:01:14]}  Qe4+ {[%clk 0:01:02]} 21. Kg1 {[%clk 0:01:14]}  Rad8 {[%clk 0:00:53]} 22. Bxg7 {[%clk 0:01:12]}  Kxg7 {[%clk 0:00:54]} 23. Rcd1 {[%clk 0:01:09]}  a6 {[%clk 0:00:42]} 24. a3 {[%clk 0:01:06]}  Rfe8 {[%clk 0:00:41]} 25. Qc3+ {[%clk 0:01:01]}  Kg8 {[%clk 0:00:39]} 26. Rd2 {[%clk 0:01:01]}  Rxd2 {[%clk 0:00:35]} 27. Qxd2 {[%clk 0:01:01]}  h5 {[%clk 0:00:33]} 28. Rd1 {[%clk 0:00:59]}  h4 {[%clk 0:00:31]} 29. h3 {[%clk 0:01:00]}  Qf3 {[%clk 0:00:30]} 30. Qd7 {[%clk 0:00:57]}  Re6 {[%clk 0:00:27]} 31. Qc8+ {[%clk 0:00:50]}  Kg7 {[%clk 0:00:25]} 32. Rd8 {[%clk 0:00:50]}  Qxh3 {[%clk 0:00:18]} 33. Rg8+ {[%clk 0:00:49]}  Kf6 {[%clk 0:00:18]} 34. Qd8+ {[%clk 0:00:47]}  Kf5 {[%clk 0:00:18]} 35. Qg5+ {[%clk 0:00:40]}  Ke4 {[%clk 0:00:19]} 36. Rd8 {[%clk 0:00:41]}  Kf3 {[%clk 0:00:16]} 37. Rd4 {[%clk 0:00:18]}  Rf6 {[%clk 0:00:07]} 38. e4 {[%clk 0:00:11]}  Qg4+ {[%clk 0:00:03]} 39. Qxg4+ {[%clk 0:00:11]}  Kxg4 {[%clk 0:00:04]} 40. f5 {[%clk 0:00:08]}  gxf5 {[%clk 0:00:04]} 41. exf5+ {[%clk 0:00:08]}  Kxf5 {[%clk 0:00:04]} 42. Rd7 {[%clk 0:00:08]}  b6 {[%clk 0:00:03]} 43. Rb7 {[%clk 0:00:08]}  c5 {[%clk 0:00:03]} 44. bxc5 {[%clk 0:00:07]}  bxc5 {[%clk 0:00:04]} 45. Rc7 {[%clk 0:00:08]}  Ke4 {[%clk 0:00:03]} 46. Rxc5 {[%clk 0:00:08]}  Kd4 {[%clk 0:00:03]} 47. Rh5 {[%clk 0:00:08]}  Kc4 {[%clk 0:00:03]} 48. Rxh4+ {[%clk 0:00:08]}  Kb3 {[%clk 0:00:04]} 49. a4 {[%clk 0:00:08]}  a5 {[%clk 0:00:04]} 50. Kf1 {[%clk 0:00:07]}  Rb6 {[%clk 0:00:04]} 51. Rf4 {[%clk 0:00:07]}  Rb4 {[%clk 0:00:02]} 52. Rxf7 {[%clk 0:00:07]}  Kxa4 {[%clk 0:00:03]} 53. f4 {[%clk 0:00:07]}  Kb3 {[%clk 0:00:03]} 54. Kf2 {[%clk 0:00:07]}  a4 {[%clk 0:00:03]} 55. Re7 {[%clk 0:00:04]}  Rxf4+ {[%clk 0:00:03]} 56. Kg3 {[%clk 0:00:05]}  Rc4 {[%clk 0:00:03]} 57. Kf3 {[%clk 0:00:04]}  a3 {[%clk 0:00:03]} 58. Rb7+ {[%clk 0:00:04]}  Rb4 {[%clk 0:00:03]} 59. Rc7 {[%clk 0:00:04]}  a2 {[%clk 0:00:03]} 60. Rc1 {[%clk 0:00:05]}  Kb2 {[%clk 0:00:03]} 61. Re1 {[%clk 0:00:05]}  a1=Q {[%clk 0:00:04]} 62. Rxa1 {[%clk 0:00:06]}  Kxa1 {[%clk 0:00:05]} 63. Ke3 {[%clk 0:00:06]}  Kb2 {[%clk 0:00:05]} 64. Kd3 {[%clk 0:00:04]}  Kb3 {[%clk 0:00:06]} 0-1


[Site "https://www.chess.com"]

[Event "Titled Tuesday Blitz June 27 Late 2023"]
[White "Morefield, Jason"]
[Black "Guzman Moneo, Alberto"]
[WhiteFideId "30920825"]
[BlackFideId "2209616"]
[WhiteElo "2766"]
[BlackElo "2396"]
[Result "1-0"]
[Round "5"]
[TimeControl "180+2"]
[Date "2023.06.27"]
[WhiteClock "0:00:44"]
[BlackClock "0:00:00"]
[Board "46"]

1. Nf3 {[%clk 0:03:00]}  g6 {[%clk 0:02:58]} 2. e4 {[%clk 0:03:00]}  Bg7 {[%clk 0:02:59]} 3. d4 {[%clk 0:03:01]}  d6 {[%clk 0:02:58]} 4. Nc3 {[%clk 0:02:58]}  a6 {[%clk 0:02:58]} 5. Bd3 {[%clk 0:02:54]}  b5 {[%clk 0:02:57]} 6. a4 {[%clk 0:02:53]}  b4 {[%clk 0:02:57]} 7. Ne2 {[%clk 0:02:53]}  a5 {[%clk 0:02:51]} 8. O-O {[%clk 0:02:52]}  Bb7 {[%clk 0:02:51]} 9. Ng3 {[%clk 0:02:48]}  h5 {[%clk 0:02:49]} 10. Bg5 {[%clk 0:02:43]}  Nd7 {[%clk 0:02:44]} 11. Re1 {[%clk 0:02:37]}  Ngf6 {[%clk 0:02:37]} 12. e5 {[%clk 0:02:34]}  dxe5 {[%clk 0:02:36]} 13. dxe5 {[%clk 0:02:33]}  Bxf3 {[%clk 0:01:55]} 14. Qxf3 {[%clk 0:01:41]}  Nh7 {[%clk 0:01:38]} 15. Bf4 {[%clk 0:01:22]}  e6 {[%clk 0:01:24]} 16. Bb5 {[%clk 0:01:17]}  Nf8 {[%clk 0:00:49]} 17. Rad1 {[%clk 0:01:08]}  Rb8 {[%clk 0:00:47]} 18. Ne4 {[%clk 0:00:55]}  Qe7 {[%clk 0:00:38]} 19. Bg5 {[%clk 0:00:52]}  f5 {[%clk 0:00:00]} 20. exf6 {[%clk 0:00:44]} 1-0


[Site "https://www.chess.com"]

[Event "Titled Tuesday Blitz June 27 Late 2023"]
[White "Aradhya, Garg"]
[Black "Bernado Lopez, Roger"]
[WhiteFideId "25006746"]
[BlackFideId "24585009"]
[WhiteElo "2752"]
[BlackElo "2362"]
[Result "1-0"]
[Round "5"]
[TimeControl "180+2"]
[Date "2023.06.27"]
[WhiteClock "0:00:27"]
[BlackClock "0:00:06"]
[Board "47"]

1. d4 {[%clk 0:03:00]}  d5 {[%clk 0:02:59]} 2. c4 {[%clk 0:03:01]}  e6 {[%clk 0:03:00]} 3. Nf3 {[%clk 0:03:01]}  Nf6 {[%clk 0:03:00]} 4. Nc3 {[%clk 0:03:01]}  h6 {[%clk 0:03:00]} 5. g3 {[%clk 0:03:00]}  Nc6 {[%clk 0:02:57]} 6. Bg2 {[%clk 0:02:59]}  Bd6 {[%clk 0:02:58]} 7. O-O {[%clk 0:03:00]}  O-O {[%clk 0:02:57]} 8. a3 {[%clk 0:02:52]}  dxc4 {[%clk 0:02:55]} 9. Qa4 {[%clk 0:02:47]}  e5 {[%clk 0:02:47]} 10. Qxc4 {[%clk 0:02:44]}  exd4 {[%clk 0:02:45]} 11. Nxd4 {[%clk 0:02:43]}  Nxd4 {[%clk 0:02:44]} 12. Qxd4 {[%clk 0:02:44]}  Qe7 {[%clk 0:02:35]} 13. Rd1 {[%clk 0:02:31]}  Bc5 {[%clk 0:02:21]} 14. Qh4 {[%clk 0:02:15]}  c6 {[%clk 0:02:12]} 15. b4 {[%clk 0:02:01]}  Bb6 {[%clk 0:02:09]} 16. e3 {[%clk 0:01:52]}  Bg4 {[%clk 0:02:02]} 17. Re1 {[%clk 0:01:50]}  Rad8 {[%clk 0:01:55]} 18. h3 {[%clk 0:01:48]}  Bf5 {[%clk 0:01:53]} 19. g4 {[%clk 0:01:48]}  Bg6 {[%clk 0:01:49]} 20. Ne2 {[%clk 0:01:45]}  Rfe8 {[%clk 0:01:24]} 21. Bb2 {[%clk 0:01:39]}  Ne4 {[%clk 0:01:16]} 22. Qxe7 {[%clk 0:01:37]}  Rxe7 {[%clk 0:01:17]} 23. Rad1 {[%clk 0:01:31]}  Red7 {[%clk 0:01:17]} 24. Rxd7 {[%clk 0:01:28]}  Rxd7 {[%clk 0:01:17]} 25. Bd4 {[%clk 0:01:29]}  Nd2 {[%clk 0:01:06]} 26. Bxb6 {[%clk 0:01:08]}  axb6 {[%clk 0:01:07]} 27. b5 {[%clk 0:01:09]}  Be4 {[%clk 0:00:40]} 28. Rc1 {[%clk 0:00:50]}  c5 {[%clk 0:00:35]} 29. Nc3 {[%clk 0:00:49]}  Bxg2 {[%clk 0:00:34]} 30. Kxg2 {[%clk 0:00:49]}  Nb3 {[%clk 0:00:29]} 31. Rc2 {[%clk 0:00:41]}  Na5 {[%clk 0:00:20]} 32. e4 {[%clk 0:00:41]}  Rd3 {[%clk 0:00:20]} 33. Nd5 {[%clk 0:00:40]}  Rxa3 {[%clk 0:00:19]} 34. Nxb6 {[%clk 0:00:40]}  Nb3 {[%clk 0:00:13]} 35. Rc3 {[%clk 0:00:39]}  Kf8 {[%clk 0:00:07]} 36. Nd7+ {[%clk 0:00:26]}  Ke7 {[%clk 0:00:07]} 37. Nxc5 {[%clk 0:00:27]}  Nxc5 {[%clk 0:00:07]} 38. Rxa3 {[%clk 0:00:27]}  Nxe4 {[%clk 0:00:06]} 39. Re3 {[%clk 0:00:27]} 1-0


[Site "https://www.chess.com"]